bitfinex/quotes_SOLUSD_20241007
["timestamp","ask_amount","ask_price","bid_price","bid_amount"]
[1728342444228,59.56782281,143.99,143.95,16.186]
[1728342444939,52.62292281,143.99,143.95,16.186]
[1728342445126,6.9456,143.98,143.95,16.186]
[1728342445442,52.62292281,143.99,143.95,23.1327]
[1728342446145,52.62292281,143.99,143.95,16.186]
[1728342446438,59.56782281,143.99,143.95,16.186]
[1728342446844,44.70900439,146.69,143.98,6.9453]
[1728342446845,6.943,144.03,143.98,6.9453]
[1728342447023,52.62292281,144.05,143.95,74.80837497]
[1728342447234,52.62292281,144.02,143.95,24.80837497]
[1728342447443,6.9442,144.01,143.96,24.3114]
[1728342447733,59.56632281,144.02,143.97,8.33480135]
[1728342447917,59.56632281,144.02,143.97,6.9458]
[1728342448315,6.9456,143.98,143.95,24.80837497]
[1728342448520,6.9459,143.97,143.95,16.186]
[1728342448741,52.62292281,143.99,143.95,16.186]
[1728342448927,6.944,144.01,143.96,8.33517745]
[1728342449126,6.9445,144.0,143.95,40.499]
[1728342449438,6.9443,144.01,143.96,8.33527425]
[1728342449630,59.56642281,144.02,143.97,6.9457]
[1728342449942,52.62292281,144.02,143.95,33.5526]
[1728342450238,6.9444,144.0,143.95,40.4993]
[1728342450445,6.9449,143.99,143.95,40.4993]
[1728342450848,52.62292281,144.02,143.96,1.3890807]
[1728342451025,6.9448,144.0,143.95,23.1324]
[1728342451619,6.9441,144.01,143.96,6.9462]
[1728342451823,52.62292281,144.02,143.95,17.57500626]
[1728342452046,6.943,144.03,143.98,6.9453]
[1728342452251,6.9425,144.04,144.0,6.9443]
[1728342452549,52.62292281,144.06,143.99,24.3067]
[1728342452922,6.9425,144.04,144.0,6.9443]
[1728342453138,6.9425,144.04,143.99,24.3066]
[1728342454464,59.56452281,144.06,143.99,17.3619]
[1728342454744,59.56452281,144.06,144.01,13.2258]
[1728342455251,52.62292281,144.06,144.02,6.9434]
[1728342455423,6.2853,144.12,144.03,6.9425]
[1728342455424,6.9406,144.08,144.03,6.9425]
[1728342455626,52.62292281,144.09,144.03,6.9425]
[1728342455627,52.62292281,144.09,144.03,15.6922]
[1728342455824,59.56312281,144.09,144.05,6.9419]
[1728342456153,69.96912281,144.13,144.05,6.9419]
[1728342456154,6.9397,144.1,144.05,6.9419]
[1728342456355,52.62292281,144.13,144.06,50.0]
[1728342456518,52.62292281,144.13,144.09,6.9401]
[1728342457153,52.62292281,144.13,144.07,17.3521]
[1728342457346,59.56102281,144.13,144.08,6.9402]
[1728342457740,52.62292281,144.1,144.05,8.61694184]
[1728342457949,7.44458207,144.17,144.05,8.61694184]
[1728342457950,52.62292281,144.07,144.05,8.61694184]
[1728342458146,52.62292281,144.07,144.03,15.6922]
[1728342458451,6.942,144.05,144.03,15.6922]
[1728342458655,52.62292281,144.13,144.01,23.6414]
[1728342458656,59.56542281,144.04,144.01,6.282]
[1728342458864,52.62292281,144.04,144.01,6.282]
[1728342459847,6.9443,144.01,143.99,16.5298]
[1728342460056,52.62292281,144.0,143.99,16.5298]
[1728342461141,59.56732281,144.0,143.97,6.2916]
[1728342461536,6.9453,143.99,143.97,6.2916]
[1728342461733,6.9454,143.98,143.95,16.4738]
[1728342461935,6.945,143.99,143.95,16.4738]
[1728342462139,52.62292281,144.0,143.95,16.4738]
[1728342462354,6.9454,143.98,143.95,16.4738]
[1728342462730,6.945,143.99,143.95,16.4738]
[1728342462943,52.62292281,144.0,143.96,1.38916133]
[1728342463247,6.9459,143.97,143.95,16.4738]
[1728342463754,6.9468,143.95,143.93,8.62389338]
[1728342464259,59.56922281,143.97,143.93,8.62389338]
[1728342464459,6.9464,143.96,143.93,8.62389338]
[1728342464655,59.56882281,143.97,143.93,8.62389338]
[1728342465536,6.9463,143.96,143.93,8.62389338]
[1728342465737,59.56882281,143.97,143.93,8.62389338]
[1728342466335,6.9465,143.96,143.93,8.62389338]
[1728342466537,6.9483,143.92,143.9,6.2015]
[1728342466741,6.9483,143.92,143.88,17.3748]
[1728342467259,6.9483,143.92,143.88,24.3249]
[1728342468051,52.62292281,143.91,143.87,22.9328]
[1728342468250,52.62292281,143.88,143.83,15.227]
[1728342468452,52.62292281,143.84,143.83,15.227]
[1728342468637,52.62292281,143.84,143.79,47.37409158]
[1728342468954,52.62292281,143.84,143.79,54.32849158]
[1728342469364,52.62292281,143.84,143.79,47.37409158]
[1728342469654,17.3763,143.88,143.79,47.37409158]
[1728342469655,6.9513,143.86,143.81,6.9536]
[1728342470062,6.9513,143.86,143.79,47.37409158]
[1728342470242,6.9513,143.86,143.8,6.954]
[1728342470438,52.62292281,143.87,143.79,29.98789158]
[1728342470642,59.57372281,143.87,143.82,6.9527]
[1728342470941,52.62292281,143.9,143.83,1.39033612]
[1728342471137,52.62292281,143.9,143.85,6.9516]
[1728342471138,59.57252281,143.9,143.85,6.9516]
[1728342471333,59.57252281,143.9,143.83,17.3809]
[1728342471334,52.62292281,143.9,143.86,17.3775]
[1728342471561,59.57112281,143.93,143.87,6.9506]
[1728342471748,52.62292281,143.93,143.86,17.3775]
[1728342471935,52.62292281,143.93,143.83,27.05422743]
[1728342472261,52.62292281,143.93,143.87,39.7181]
[1728342472443,6.9483,143.92,143.88,6.9502]
[1728342472860,17.3642,143.98,143.89,17.3737]
[1728342472861,52.62292281,143.96,143.89,17.3737]
[1728342473166,6.9468,143.95,143.9,6.9492]
[1728342474059,6.9468,143.95,143.91,6.9486]
[1728342474257,59.53926281,143.96,143.91,6.9486]
[1728342474461,52.62292281,143.99,143.92,17.3702]
[1728342474634,6.9459,143.97,143.92,17.3702]
[1728342474839,6.9459,143.97,143.92,24.3183]
[1728342475341,6.9459,143.97,143.93,8.33678109]
[1728342475555,6.9459,143.97,143.92,24.3184]
[1728342476366,6.9458,143.98,143.93,8.33717136]
[1728342476554,59.56812281,143.99,143.95,17.367]
[1728342476866,52.62292281,143.99,143.95,17.367]
[1728342477044,52.62292281,144.02,143.95,18.75611579]
[1728342477248,52.62292281,144.02,143.96,8.33534516]
[1728342477249,6.944,144.01,143.96,8.33534516]
[1728342477569,59.56642281,144.02,143.97,6.9458]
[1728342477860,52.62292281,144.06,143.98,1.38903286]
[1728342478289,52.62292281,144.06,144.01,6.9435]
[1728342478446,6.9424,144.05,144.0,24.305]
[1728342478641,6.9435,144.02,143.97,30.3336]
[1728342478854,52.62292281,144.06,143.97,6.0238]
[1728342479056,6.945,143.99,143.97,6.0238]
[1728342479472,52.62292281,143.99,143.96,15.4047]
[1728342479776,6.9463,143.96,143.95,8.62258345]
[1728342479952,6.9463,143.96,143.87,21.4607]
[1728342479953,52.62292281,143.96,143.87,21.4607]
[1728342480149,52.62292281,143.99,143.88,30.0]
[1728342480150,52.62292281,143.91,143.88,30.0]
[1728342480350,52.62292281,143.91,143.87,21.4607]
[1728342480351,6.9492,143.9,143.87,21.4607]
[1728342480549,52.62292281,143.88,143.82,21.4607]
[1728342480779,52.62292281,143.88,143.82,22.85110778]
[1728342480942,52.62292281,143.88,143.82,21.4607]
[1728342480943,6.9507,143.87,143.82,21.4607]
[1728342481142,52.62292281,143.88,143.82,28.4135]
[1728342481367,59.57322281,143.88,143.83,1.39035675]
[1728342481664,6.9507,143.87,143.82,21.4607]
[1728342482265,6.0272,143.93,143.83,1.39035646]
[1728342482456,52.62292281,143.88,143.82,21.4607]
[1728342482788,52.62292281,143.88,143.82,28.4136]
[1728342483367,6.9492,143.91,143.85,6.9515]
[1728342483663,59.57152281,143.92,143.86,6.951]
[1728342483964,52.62292281,143.92,143.87,17.3767]
[1728342484180,52.62292281,143.92,143.88,6.95]
[1728342484470,52.62292281,143.95,143.89,6.9497]
[1728342484770,52.62292281,143.99,143.9,17.3729]
[1728342484956,6.9464,143.96,143.9,24.3218]
[1728342485154,52.62292281,143.99,143.9,40.6531]
[1728342485342,6.9464,143.96,143.91,6.9487]
[1728342485544,6.9458,143.98,143.92,6.9481]
[1728342485799,52.62292281,143.99,143.9,40.6531]
[1728342485974,6.9463,143.96,143.91,6.9487]
[1728342486276,6.946,143.97,143.91,6.9483]
[1728342486458,6.946,143.97,143.92,6.948]
[1728342486843,52.62292281,143.99,143.92,17.3698]
[1728342487672,6.9459,143.97,143.92,24.3176]
[1728342488166,6.9459,143.97,143.93,6.9477]
[1728342488468,6.9455,143.98,143.93,6.9477]
[1728342488669,52.62292281,143.99,143.92,17.3698]
[1728342488867,52.62292281,143.99,143.9,23.2802]
[1728342488868,23.776884,143.98,143.9,23.2802]
[1728342489186,52.62292281,143.96,143.9,23.2802]
[1728342489359,52.62292281,143.93,143.87,6.212]
[1728342489573,52.62292281,143.93,143.9,6.9489]
[1728342489767,6.9479,143.93,143.89,6.9496]
[1728342489983,6.9473,143.95,143.88,47.3747]
[1728342490172,52.62292281,143.99,143.89,50.0]
[1728342490356,6.9459,143.97,143.93,6.9477]
[1728342490689,52.62292281,143.99,143.89,8.62649605]
[1728342490981,52.62292281,143.95,143.87,6.212]
[1728342491186,52.62292281,143.92,143.87,6.212]
[1728342491377,52.62292281,143.89,143.86,15.1434]
[1728342491581,6.9507,143.87,143.86,15.1434]
[1728342491879,52.62292281,143.89,143.86,15.1434]
[1728342492080,52.62292281,143.92,143.86,15.1434]
[1728342492459,6.9493,143.9,143.86,15.1434]
[1728342492655,52.62292281,143.92,143.86,22.0944]
[1728342492656,6.9487,143.91,143.86,22.0944]
[1728342492892,6.9492,143.9,143.86,15.1434]
[1728342493687,6.9492,143.9,143.86,22.0944]
[1728342493981,52.62292281,143.92,143.86,22.0944]
[1728342493982,52.62292281,143.92,143.86,32.5207]
[1728342494184,6.9477,143.94,143.89,6.9493]
[1728342494686,6.9479,143.93,143.89,6.9493]
[1728342494859,52.62292281,143.95,143.88,17.3748]
[1728342495681,6.9474,143.94,143.89,6.9496]
[1728342496377,6.9474,143.94,143.9,6.9489]
[1728342496568,6.9473,143.94,143.89,6.9496]
[1728342497088,6.9473,143.94,143.88,17.3748]
[1728342497284,6.947,143.95,143.91,6.9487]
[1728342497485,52.62292281,143.99,143.9,24.3217]
[1728342497486,6.9476,143.94,143.9,24.3217]
[1728342498067,6.9476,143.94,143.87,43.38089759]
[1728342498068,6.9482,143.93,143.88,6.9499]
[1728342498271,6.9492,143.91,143.87,26.00329759]
[1728342498460,6.9493,143.9,143.87,8.62739759]
[1728342498785,52.62292281,143.93,143.88,6.9502]
[1728342498786,6.9483,143.92,143.88,6.9502]
[1728342499090,52.62292281,143.93,143.87,26.00369759]
[1728342499387,6.9496,143.9,143.87,8.62739759]
[1728342499561,52.62292281,143.9,143.86,15.1434]
[1728342499767,6.9513,143.86,143.84,14.86195056]
[1728342500090,69.99642281,143.9,143.84,14.86195056]
[1728342500292,6.9503,143.88,143.84,14.86195056]
[1728342500581,52.62292281,143.9,143.84,21.81375056]
[1728342500825,6.9488,143.91,143.85,17.3787]
[1728342500980,17.3698,143.93,143.9,6.9492]
[1728342500981,52.62292281,143.93,143.9,6.9492]
[1728342501285,52.62292281,143.96,143.91,6.9487]
[1728342501588,52.62292281,143.96,143.91,17.3716]
[1728342501793,6.9473,143.94,143.91,17.3716]
[1728342501989,52.62292281,143.96,143.91,17.3716]
[1728342502281,6.9472,143.95,143.91,17.3716]
[1728342502494,6.9474,143.94,143.9,15.0941]
[1728342502698,6.9497,143.89,143.86,15.5419]
[1728342503187,69.99332281,143.93,143.86,15.5419]
[1728342503367,6.9465,143.96,143.92,6.9483]
[1728342503561,6.9468,143.95,143.91,17.3712]
[1728342503768,52.62292281,143.99,143.9,6.9488]
[1728342503769,6.9474,143.94,143.9,6.9488]
[1728342504071,6.9468,143.96,143.87,50.0]
[1728342504280,52.62292281,144.02,143.92,16.3774]
[1728342504589,6.9457,143.98,143.94,17.3677]
[1728342504782,6.945,143.99,143.94,24.3146]
[1728342505093,52.62292281,144.02,143.96,6.9463]
[1728342505389,6.944,144.01,143.96,6.9463]
[1728342505562,39.91777699,144.11,143.96,6.9463]
[1728342505563,52.62292281,144.05,143.96,17.3651]
[1728342505765,6.9438,144.02,143.97,6.9458]
[1728342506193,59.56492281,144.05,143.98,17.3627]
[1728342506494,6.9414,144.07,144.02,6.9432]
[1728342506673,5.63710449,144.06,144.01,17.3594]
[1728342506993,6.9425,144.04,144.01,17.3594]
[1728342507190,6.9416,144.06,144.01,24.3032]
[1728342507397,52.62292281,144.08,144.02,1.38847048]
[1728342507572,52.62292281,144.08,144.02,6.943]
[1728342507760,6.9415,144.06,144.02,6.943]
[1728342507962,6.9411,144.07,144.03,1.38835607]
[1728342508167,59.44387622,144.18,144.03,1.38835366]
[1728342508366,6.9391,144.11,144.07,6.941]
[1728342508676,6.9391,144.11,144.03,60.00625499]
[1728342508677,52.62292281,144.13,144.06,17.3536]
[1728342508874,14.65130337,144.12,144.03,77.01675874]
[1728342509196,52.62292281,144.13,144.03,77.01675874]
[1728342509394,6.9397,144.1,144.06,6.9415]
[1728342509687,6.9392,144.11,144.06,6.9415]
[1728342509873,52.62292281,144.13,144.09,6.9399]
[1728342510066,5.63093518,144.12,144.03,59.65965874]
[1728342510268,6.94,144.1,144.05,24.2966]
[1728342510474,52.62292281,144.1,144.03,8.61790133]
[1728342510780,69.96912281,144.13,144.03,8.61790133]
[1728342510781,6.942,144.05,144.03,8.61790133]
[1728342510988,6.942,144.05,144.0,6.9443]
[1728342511179,52.62292281,144.07,143.99,39.6976]
[1728342511488,52.62292281,144.04,143.99,39.6976]
[1728342511785,52.62292281,144.04,144.02,6.9434]
[1728342511971,6.9415,144.06,144.01,24.303]
[1728342512180,52.62292281,144.07,143.99,22.3356]
[1728342512381,6.9428,144.04,143.99,29.2801]
[1728342512568,6.9415,144.06,144.01,6.9435]
[1728342512769,52.62292281,144.07,144.02,17.3577]
[1728342512978,52.62292281,144.07,144.03,6.9429]
[1728342513186,59.56402281,144.07,144.02,24.301]
[1728342513383,52.62292281,144.07,144.02,17.3577]
[1728342513582,6.942,144.05,144.0,6.9444]
[1728342513793,6.9401,144.09,144.04,6.9422]
[1728342513996,52.62292281,144.13,144.03,6.9429]
[1728342514181,6.9424,144.05,143.99,46.6421]
[1728342514385,52.62292281,144.09,144.0,50.0]
[1728342514695,52.62292281,144.09,144.02,50.0]
[1728342514897,52.62292281,144.13,144.05,24.2962]
[1728342514898,6.94,144.1,144.05,24.2962]
[1728342515291,6.94,144.1,144.02,84.7169]
[1728342515292,6.941,144.07,144.02,17.3581]
[1728342515480,59.56432281,144.07,144.02,17.3581]
[1728342515681,59.56432281,144.07,144.02,24.3014]
[1728342516298,6.9421,144.05,144.01,8.6190588]
[1728342516482,52.62292281,144.07,144.01,8.6190588]
[1728342516998,52.62292281,144.07,143.99,22.3356]
[1728342517195,6.9424,144.05,143.99,22.3356]
[1728342517501,52.62292281,144.07,144.0,17.3605]
[1728342517676,34.6938,144.12,143.99,22.3356]
[1728342517677,7.06549,144.1,144.05,6.9418]
[1728342518012,6.965,144.17,143.99,22.3356]
[1728342518013,52.62292281,144.08,143.99,22.3356]
[1728342518305,6.943,144.03,143.98,6.9453]
[1728342518474,52.62292281,144.04,144.0,6.9441]
[1728342518678,6.9425,144.04,143.99,6.9448]
[1728342518887,52.62292281,144.07,143.98,17.3628]
[1728342519299,52.62292281,144.04,143.98,17.3628]
[1728342519603,6.943,144.03,143.98,17.3628]
[1728342519810,6.943,144.03,143.99,6.9447]
[1728342520103,52.62292281,144.04,143.98,17.3628]
[1728342520277,6.944,144.01,143.98,17.3628]
[1728342520484,6.9444,144.0,143.95,47.22135379]
[1728342520791,52.62292281,144.04,143.96,1.38895888]
[1728342520993,93.75460681,144.06,143.97,17.364]
[1728342521310,6.9426,144.04,143.99,6.9448]
[1728342521490,93.75460681,144.06,143.99,6.9448]
[1728342521800,6.9436,144.02,143.97,24.3094]
[1728342522006,6.943,144.03,143.98,6.945]
[1728342522208,83.34130681,144.06,143.98,1.38875382]
[1728342522413,6.9414,144.07,143.99,50.0]
[1728342522703,52.62292281,144.08,144.01,17.3588]
[1728342522895,52.62292281,144.08,143.98,8.62080813]
[1728342523089,52.62292281,144.05,143.98,32.92930813]
[1728342523404,59.56502281,144.05,143.99,1.38878519]
[1728342523609,59.56502281,144.05,144.01,6.9437]
[1728342523917,66.40619484,144.13,143.98,8.62080813]
[1728342523918,23.902374,144.19,144.05,1.3268]
[1728342524088,15.55629202,144.31,144.05,1.3268]
[1728342524089,19.0893659,144.46,144.33,2.0]
[1728342524286,0.8120736,144.49,144.33,2.0]
[1728342524287,0.8120736,144.49,144.47,6.9217]
[1728342524492,7.36e-05,144.49,144.48,52.25098]
[1728342524723,17.89272558,144.67,144.62,6.9146]
[1728342524724,35.28173668,144.67,144.62,6.9146]
[1728342524889,35.28173668,144.67,144.48,23.776884]
[1728342524890,50.0,144.94,144.59,52.62292281]
[1728342524891,4.08771593,144.78,144.59,52.62292281]
[1728342525211,4.08771593,144.78,144.49,42.34573748]
[1728342525212,5.00573102,144.78,144.67,17.2795]
[1728342525414,59.25562281,144.83,144.7,2.0]
[1728342525415,5.80169173,144.77,144.7,2.0]
[1728342525598,52.62292281,144.9,144.72,19.2742]
[1728342525599,15.34567754,144.86,144.72,19.2742]
[1728342525796,15.34567754,144.86,144.74,2.0]
[1728342525797,59.52672281,144.85,144.74,2.0]
[1728342526107,59.52672281,144.85,144.74,6.9085]
[1728342526108,56.79325411,144.85,144.74,6.9085]
[1728342526414,52.62292281,144.85,144.75,6.908]
[1728342526625,52.62292281,144.85,144.76,27.82604282]
[1728342526908,67.91372281,144.86,144.77,35.55549916]
[1728342527132,67.91372281,144.86,144.76,2.0]
[1728342527133,6.68602,144.93,144.78,35.55549916]
[1728342527319,45.71220747,144.89,144.79,35.55549916]
[1728342527494,13.33906563,144.88,144.8,2.0]
[1728342527693,25.13208707,144.87,144.8,2.0]
[1728342527920,52.62292281,144.81,144.63,44.027864]
[1728342528100,11.79302144,144.8,144.72,2.0]
[1728342528415,52.62292281,144.78,144.7,2.0]
[1728342528618,50.14192991,144.77,144.72,2.0]
[1728342528817,50.14192991,144.77,144.67,50.0]
[1728342528818,50.14192991,144.76,144.74,2.0]
[1728342528994,102.76485272,144.75,144.67,2.0]
[1728342529198,102.76485272,144.75,144.55,176.91074939]
[1728342529199,50.14192991,144.74,144.71,2.0]
[1728342529422,52.62292281,144.76,144.71,2.0]
[1728342529423,50.14192991,144.73,144.71,2.0]
[1728342529718,25.93548099,144.72,144.7,2.0]
[1728342529928,25.93548099,144.71,144.68,2.0]
[1728342530126,6.9095,144.73,144.67,2.0]
[1728342530312,52.62292281,144.77,144.69,2.0]
[1728342530313,25.16487733,144.72,144.69,2.0]
[1728342530623,20.0,144.77,144.74,2.0]
[1728342530859,6.9088,144.75,144.72,2.0]
[1728342531006,6.9078,144.77,144.72,2.0]
[1728342531331,6.9081,144.76,144.74,2.0]
[1728342531922,6.9088,144.75,144.72,2.0]
[1728342532123,6.9088,144.75,144.74,2.0]
[1728342532332,6.9088,144.75,144.72,2.0]
[1728342532501,6.9091,144.74,144.72,2.0]
[1728342533824,52.62292281,144.73,144.72,2.0]
[1728342534006,6.9091,144.74,144.72,2.0]
[1728342534209,4.90768845,144.68,144.66,50.0]
[1728342535031,4.90768845,144.68,144.67,0.12549]
[1728342535330,4.90768845,144.68,144.67,31.03703602]
[1728342536521,4.90768845,144.68,144.67,31.28801602]
[1728342536731,4.90768845,144.68,144.67,31.03703602]
[1728342536930,4.90768845,144.68,144.67,1.03703602]
[1728342537232,4.90768845,144.68,144.65,8.58107756]
[1728342537408,6.9124,144.67,144.65,8.58107756]
[1728342538130,6.9124,144.67,144.59,0.02]
[1728342538131,6.9143,144.63,144.59,0.02]
[1728342538317,52.62292281,144.67,144.6,30.0]
[1728342538519,6.9138,144.64,144.59,0.02]
[1728342538827,6.9138,144.64,144.59,1.05757999]
[1728342539733,6.9138,144.64,144.59,0.02]
[1728342540026,52.62292281,144.67,144.61,50.0]
[1728342540027,6.9131,144.66,144.61,50.0]
[1728342540208,6.9133,144.65,144.61,50.0]
[1728342540407,4.90768845,144.68,144.61,50.0]
[1728342541132,6.9124,144.67,144.63,50.0]
[1728342541510,6.9135,144.65,144.62,8.58278589]
[1728342541820,6.9147,144.62,144.58,51.03777821]
[1728342542017,6.9154,144.61,144.58,51.03777821]
[1728342542329,6.9154,144.61,144.56,50.0]
[1728342542631,4.90768845,144.68,144.59,50.0]
[1728342542831,6.9133,144.65,144.59,50.0]
[1728342543034,6.9133,144.65,144.61,50.0]
[1728342543207,4.90768845,144.68,144.61,50.0]
[1728342543406,6.9144,144.63,144.58,50.0]
[1728342543625,6.9135,144.65,144.61,50.0]
[1728342543833,6.9135,144.65,144.6,0.12549]
[1728342544011,6.9147,144.62,144.6,30.0]
[1728342544316,52.62292281,144.64,144.59,8.58466226]
[1728342544528,6.9142,144.63,144.59,8.58466226]
[1728342544711,6.9147,144.62,144.59,8.58466226]
[1728342544913,6.9152,144.61,144.59,8.58466226]
[1728342545117,6.917,144.57,144.54,50.02]
[1728342545628,20.0,144.63,144.56,50.0]
[1728342545941,52.62292281,144.64,144.58,50.0]
[1728342546231,52.62292281,144.64,144.57,50.0]
[1728342546422,6.9153,144.61,144.57,50.0]
[1728342546618,6.9148,144.62,144.57,50.0]
[1728342547139,52.62292281,144.64,144.57,50.0]
[1728342547311,6.9167,144.58,144.56,1.03793616]
[1728342547518,6.9167,144.58,144.54,50.02]
[1728342547835,6.9164,144.59,144.55,30.0]
[1728342548128,6.9168,144.58,144.55,30.0]
[1728342548328,6.9171,144.57,144.55,30.0]
[1728342549040,6.9171,144.57,144.54,0.02]
[1728342549216,20.0,144.6,144.54,0.02]
[1728342549537,52.62292281,144.55,144.49,50.02]
[1728342549751,6.9184,144.55,144.51,50.0]
[1728342550227,4.90768845,144.52,144.51,50.0]
[1728342550423,4.90768845,144.52,144.49,50.02]
[1728342550630,4.90768845,144.52,144.5,1.03837237]
[1728342550810,4.90768845,144.52,144.51,50.0]
[1728342551616,4.90768845,144.52,144.51,104.027864]
[1728342552035,4.90768845,144.52,144.51,80.25098]
[1728342552250,17.2804,144.68,144.58,0.12549]
[1728342552415,52.62292281,144.67,144.55,50.0]
[1728342552732,52.62292281,144.67,144.58,0.12549]
[1728342552733,6.9143,144.63,144.58,0.12549]
[1728342552931,52.62292281,144.69,144.56,8.58440915]
[1728342552932,52.62292281,144.64,144.56,8.58440915]
[1728342553234,52.62292281,144.61,144.56,8.58440915]
[1728342553718,6.9161,144.59,144.56,8.58440915]
[1728342554150,52.62292281,144.61,144.56,8.58440915]
[1728342554713,59.53802281,144.61,144.56,8.58440915]
[1728342555023,20.0,144.63,144.56,58.58440915]
[1728342555221,6.9152,144.61,144.56,58.58440915]
[1728342555422,6.603,144.76,144.61,0.12549]
[1728342555638,52.62292281,144.7,144.62,50.0]
[1728342555843,6.9128,144.66,144.61,80.0]
[1728342556041,52.62292281,144.7,144.61,80.0]
[1728342556216,6.9124,144.67,144.61,80.0]
[1728342556536,52.62292281,144.7,144.61,80.0]
[1728342556732,6.9129,144.66,144.61,80.0]
[1728342557132,20.0,144.69,144.61,80.0]
[1728342557648,6.9122,144.68,144.61,86.9147]
[1728342557819,6.9122,144.67,144.61,86.9147]
[1728342558020,6.9127,144.66,144.61,80.0]
[1728342558221,52.62292281,144.67,144.61,30.0]
[1728342558418,6.9146,144.62,144.61,30.0]
[1728342558641,52.62292281,144.64,144.61,30.0]
[1728342558819,6.9146,144.62,144.61,30.0]
[1728342559137,6.9146,144.62,144.51,147.33841399]
[1728342559138,20.0,144.61,144.51,147.33841399]
[1728342559343,59.53902281,144.59,144.51,147.33841399]
[1728342559642,26.915,144.62,144.55,15.50503425]
[1728342559836,52.62292281,144.63,144.58,50.0]
[1728342560053,52.62292281,144.63,144.57,17.2925]
[1728342560215,6.9147,144.62,144.57,17.2925]
[1728342560416,52.62292281,144.58,144.51,97.33841399]
[1728342560653,6.9186,144.54,144.48,6.9213]
[1728342560818,59.54092281,144.55,144.49,6.9407]
[1728342561020,52.62292281,144.55,144.5,56.9199]
[1728342561522,52.62292281,144.55,144.49,17.3219]
[1728342561732,52.62292281,144.55,144.49,0.02]
[1728342561733,6.9189,144.53,144.49,0.02]
[1728342561938,52.62292281,144.55,144.49,0.02]
[1728342562247,6.9185,144.54,144.49,0.02]
[1728342562421,6.919,144.53,144.49,0.02]
[1728342562620,52.62292281,144.52,144.49,0.02]
[1728342563131,52.62292281,144.52,144.46,97.37210443]
[1728342563344,59.54422281,144.49,144.44,0.02]
[1728342563846,52.62292281,144.49,144.44,6.9432]
[1728342564021,52.62292281,144.49,144.44,0.02]
[1728342564354,59.54402281,144.49,144.44,30.02]
[1728342564670,52.62292281,144.49,144.44,30.02]
[1728342564836,52.62292281,144.49,144.44,0.02]
[1728342565037,52.62292281,144.49,144.44,6.943]
[1728342565237,52.62292281,144.49,144.44,6.923]
[1728342565447,52.62292281,144.49,144.43,17.3093]
[1728342565745,69.91912281,144.55,144.43,17.3093]
[1728342565746,52.62292281,144.52,144.44,50.0]
[1728342565947,52.62292281,144.52,144.48,17.3026]
[1728342566140,52.62292281,144.52,144.49,6.9208]
[1728342566465,52.62292281,144.52,144.5,6.9203]
[1728342566664,52.62292281,144.52,144.48,17.3026]
[1728342566854,52.62292281,144.55,144.49,6.9204]
[1728342567036,52.62292281,144.55,144.5,6.9203]
[1728342567235,52.62292281,144.55,144.5,6.9204]
[1728342567437,59.53952281,144.58,144.52,6.9192]
[1728342567651,52.62292281,144.58,144.5,17.3]
[1728342567853,52.62292281,144.58,144.52,17.2977]
[1728342568262,59.53852281,144.61,144.55,6.9176]
[1728342568458,52.62292281,144.61,144.54,17.2953]
[1728342568632,6.916,144.6,144.54,24.2136]
[1728342568838,52.62292281,144.61,144.54,17.2953]
[1728342569553,6.6046,144.62,144.55,1.38336659]
[1728342569758,6.6046,144.62,144.61,6.9151]
[1728342569969,59.22752281,144.62,144.56,1.38295889]
[1728342570264,59.22752281,144.62,144.51,84.5989]
[1728342570265,52.62292281,144.59,144.54,17.2955]
[1728342570465,6.6046,144.62,144.5,1.0383251]
[1728342570647,52.62292281,144.57,144.52,6.9194]
[1728342570873,52.62292281,144.54,144.49,8.59042784]
[1728342571057,23.776884,144.52,144.47,6.9218]
[1728342571368,20.0,144.53,144.48,6.9213]